bitfinex/quotes_SOLUSD_20250326
["timestamp","ask_amount","ask_price","bid_price","bid_amount"]
[1742997089791,35.1169495,142.99,142.86,201.24]
[1742997090130,34.49364184,142.97,142.87,7.94]
[1742997090336,20.0,142.93,142.85,44.7448433]
[1742997090618,190.50094531,142.95,142.85,44.7448433]
[1742997090797,35.80999977,142.96,142.85,201.24]
[1742997091200,35.49364184,142.97,142.85,201.24]
[1742997091400,35.11321586,142.94,142.86,8.12216157]
[1742997091610,35.11321586,142.94,142.86,7.98]
[1742997091925,13.97495289,142.93,142.85,175.15228426]
[1742997092223,35.96965754,142.92,142.86,209.4]
[1742997092398,35.96965754,142.92,142.87,18.64964886]
[1742997092802,35.96965754,142.92,142.87,0.28432314]
[1742997093635,35.96965754,142.92,142.89,0.14216157]
[1742997093938,41.99061336,142.9,142.89,0.42648471]
[1742997094110,13.97495289,142.91,142.89,8.02]
[1742997094311,11.09869855,142.91,142.89,8.02]
[1742997094539,11.09869855,142.91,142.86,117.08236598]
[1742997094737,11.09869855,142.91,142.89,8.02]
[1742997095035,0.5,142.94,142.79,209.52]
[1742997095329,0.5,142.95,142.8,18.64964886]
[1742997095532,82.2,142.96,142.8,18.64964886]
[1742997095708,0.5,142.97,142.82,18.64964886]
[1742997096124,0.5,142.97,142.83,0.42648471]
[1742997096374,0.5,142.96,142.83,0.42648471]
[1742997096833,0.5,142.97,142.83,0.28432314]
[1742997097029,0.5,142.96,142.8,82.0]
[1742997097216,0.5,142.95,142.85,18.933972]
[1742997097403,0.5,142.96,142.86,0.14216157]
[1742997097605,0.5,142.95,142.86,0.14216157]
[1742997098632,0.5,142.99,142.88,20.0]
[1742997098846,0.5,142.96,142.89,19.07613357]
[1742997099003,0.5,142.96,142.88,20.0]
[1742997099208,0.5,142.95,142.89,8.08]
[1742997099409,0.5,142.92,142.76,82.0]
[1742997099615,0.5,142.88,142.75,8.32]
[1742997099826,0.5,142.89,142.79,18.64964886]
[1742997100032,0.5,142.89,142.75,8.32]
[1742997100239,0.5,142.89,142.8,18.79181043]
[1742997100439,0.5,142.89,142.81,8.76]
[1742997100738,0.5,142.89,142.73,201.62]
[1742997101049,0.5,142.8,142.73,201.62]
[1742997101546,0.5,142.75,142.68,0.03]
[1742997101715,0.5,142.73,142.68,0.03]
[1742997101913,0.38,142.74,142.68,0.03]
[1742997102146,0.38,142.74,142.68,20.03]
[1742997102325,0.38,142.74,142.69,8.82]
[1742997102513,81.7,142.77,142.69,8.82]
[1742997102910,82.2,142.77,142.69,8.82]
[1742997103151,0.5,142.8,142.69,27.46964886]
[1742997103449,82.2,142.79,142.69,8.82]
[1742997103623,0.5,142.77,142.69,8.82]
[1742997103811,81.7,142.83,142.74,20.0]
[1742997104017,20.0,142.89,142.78,20.0]
[1742997104215,6.6513,142.99,142.78,20.0]
[1742997104216,80.3244,142.88,142.79,18.79181043]
[1742997104414,80.3244,142.88,142.8,0.28432314]
[1742997104647,80.3244,142.88,142.81,8.84]
[1742997105842,80.3244,142.88,142.78,221.7]
[1742997106060,0.5,142.86,142.78,221.7]
[1742997106236,80.3244,142.87,142.78,221.7]
[1742997106237,80.8244,142.85,142.78,201.7]
[1742997106547,0.5,142.83,142.73,27.59181043]
[1742997106845,0.5,142.83,142.76,20.0]
[1742997107228,80.8244,142.84,142.76,20.0]
[1742997107445,0.5,142.83,142.76,20.0]
[1742997107638,80.8244,142.84,142.76,20.0]
[1742997107841,0.5,142.83,142.76,20.0]
[1742997108033,0.5,142.81,142.73,27.57181043]
[1742997108232,0.5,142.79,142.72,2.2280124]
[1742997108535,0.5,142.78,142.72,2.2280124]
[1742997108724,135.5,142.83,142.72,2.2280124]
[1742997108725,0.5,142.76,142.72,2.2280124]
[1742997108926,80.8244,142.77,142.72,2.2280124]
[1742997109133,0.5,142.76,142.72,2.2280124]
[1742997109449,80.8244,142.75,142.72,2.2280124]
[1742997110159,0.5,142.75,142.72,2.2280124]
[1742997110448,80.3244,142.78,142.72,2.2280124]
[1742997110751,0.5,142.75,142.72,2.2280124]
[1742997111441,0.5,142.74,142.72,2.2280124]
[1742997111620,0.5,142.73,142.72,2.2280124]
[1742997111821,0.5,142.75,142.72,2.2280124]
[1742997112027,0.5,142.74,142.72,2.2280124]
[1742997112543,80.8244,142.73,142.72,2.2580124]
[1742997112729,0.5,142.73,142.72,2.2580124]
[1742997113124,135.5,142.75,142.72,2.2580124]
[1742997113648,0.5,142.73,142.72,2.2580124]
[1742997113826,136.0,142.75,142.72,2.2580124]
[1742997114153,135.5,142.75,142.72,2.2580124]
[1742997114447,0.5,142.73,142.72,2.2580124]
[1742997114643,135.5,142.75,142.72,2.2580124]
[1742997115154,136.0,142.75,142.72,2.2580124]
[1742997115356,0.5,142.74,142.72,2.2580124]
[1742997115861,135.5,142.75,142.72,2.2580124]
[1742997116159,0.5,142.77,142.72,2.2580124]
[1742997116363,0.5,142.75,142.72,2.2580124]
[1742997116565,0.5,142.78,142.72,2.2580124]
[1742997116737,0.5,142.75,142.72,2.2580124]
[1742997117158,82.2,142.79,142.72,2.2580124]
[1742997117459,82.2,142.78,142.72,2.2580124]
[1742997117641,81.7,142.78,142.72,2.2580124]
[1742997117836,82.2,142.78,142.72,2.2580124]
[1742997118039,81.7,142.78,142.72,2.2580124]
[1742997118356,0.5,142.76,142.72,2.2580124]
[1742997118739,82.2,142.78,142.72,2.2580124]
[1742997118967,0.5,142.77,142.72,2.2580124]
[1742997119167,82.2,142.78,142.72,2.2580124]
[1742997119759,6.3683,142.83,142.72,10.8780124]
[1742997119760,0.5,142.79,142.72,10.8780124]
[1742997119935,0.5,142.78,142.72,10.8780124]
[1742997120365,0.5,142.76,142.72,10.8780124]
[1742997120962,0.5,142.75,142.72,10.8780124]
[1742997121155,0.5,142.76,142.72,10.8780124]
[1742997122261,0.5,142.74,142.72,10.8780124]
[1742997122476,0.5,142.76,142.72,10.8780124]
[1742997122636,0.5,142.75,142.72,10.8780124]
[1742997122838,81.7,142.81,142.72,10.8780124]
[1742997122839,0.5,142.74,142.72,10.8780124]
[1742997123034,0.5,142.79,142.72,10.8780124]
[1742997123235,82.2,142.81,142.74,0.28432314]
[1742997123467,0.5,142.78,142.73,18.64964886]
[1742997123655,0.5,142.78,142.72,10.8780124]
[1742997123843,0.5,142.77,142.72,10.8780124]
[1742997124048,0.5,142.79,142.73,18.79181043]
[1742997124447,0.563,142.84,142.74,0.14216157]
[1742997124949,0.563,142.84,142.74,0.28432314]
[1742997125149,0.063,142.84,142.77,18.933972]
[1742997125357,0.063,142.84,142.78,8.52]
[1742997125744,0.5,142.83,142.78,8.52]
[1742997126048,0.5,142.82,142.78,8.52]
[1742997127068,0.5,142.81,142.78,8.52]
[1742997127266,0.5,142.82,142.78,8.52]
[1742997127473,0.563,142.84,142.78,8.52]
[1742997127771,0.5,142.83,142.78,8.52]
[1742997128543,0.5,142.77,142.72,204.3180124]
[1742997128744,0.5,142.75,142.72,204.3180124]
[1742997128942,0.5,142.77,142.72,204.3180124]
[1742997129143,0.5,142.79,142.73,18.79181043]
[1742997129339,0.5,142.81,142.74,0.14216157]
[1742997129571,0.5,142.83,142.76,18.933972]
[1742997129767,0.5,142.82,142.76,18.933972]
[1742997130071,0.5,142.83,142.76,18.933972]
[1742997130261,0.5,142.81,142.75,8.5]
[1742997130456,0.5,142.81,142.76,18.933972]
[1742997130764,0.5,142.8,142.75,8.5]
[1742997130969,0.063,142.84,142.72,2.40017397]
[1742997130970,0.5,142.79,142.72,2.40017397]
[1742997131149,0.5,142.77,142.72,2.2580124]
[1742997131467,81.7,142.83,142.72,10.7180124]
[1742997131468,0.5,142.78,142.72,10.7180124]
[1742997131644,0.5,142.76,142.72,10.7180124]
[1742997132063,0.5,142.78,142.72,10.7180124]
[1742997132346,0.5,142.77,142.72,10.7180124]
[1742997132546,0.5,142.76,142.72,2.2580124]
[1742997133267,0.5,142.75,142.72,2.2580124]
[1742997133463,0.5,142.76,142.72,2.2580124]
[1742997133965,1.7539255,142.74,142.72,2.2580124]
[1742997134164,1.7539255,142.74,142.73,18.933972]
[1742997135080,0.5,142.8,142.73,19.07613357]
[1742997135374,82.2,142.81,142.73,19.07613357]
[1742997135688,0.5,142.8,142.73,19.07613357]
[1742997135890,82.2,142.81,142.73,19.07613357]
[1742997136253,0.5,142.8,142.73,19.07613357]
[1742997136453,0.5,142.78,142.72,2.2580124]
[1742997136972,0.5,142.77,142.72,2.2580124]
[1742997137171,2.80530838,142.8,142.72,2.2580124]
[1742997137172,0.5,142.76,142.72,2.2580124]
[1742997137564,0.5,142.75,142.72,2.2580124]
[1742997137889,2.80530838,142.8,142.72,2.2580124]
[1742997137890,0.5,142.76,142.72,2.2580124]
[1742997138064,0.5,142.75,142.72,2.2580124]
[1742997138671,0.5,142.73,142.72,2.2580124]
[1742997139179,0.5,142.75,142.72,2.2580124]
[1742997139559,0.5,142.74,142.72,2.2580124]
[1742997139867,22.31954886,142.84,142.46,33.17208834]
[1742997139868,0.5,142.6,142.46,33.17208834]
[1742997140067,0.5,142.57,142.46,10.9769]
[1742997140257,28.3,142.64,142.46,10.9769]
[1742997140258,0.5,142.55,142.46,10.9769]
[1742997140459,0.3773,142.56,142.46,10.9769]
[1742997141063,0.3773,142.58,142.49,21.0]
[1742997141260,81.7,142.61,142.49,1.0]
[1742997141486,81.7,142.6,142.5,0.14216157]
[1742997141691,81.7,142.59,142.49,1.0]
[1742997141879,81.7,142.59,142.5,0.14216157]
[1742997142080,135.5,142.62,142.5,18.79181043]
[1742997142264,81.7,142.63,142.54,18.79181043]
[1742997142589,81.7,142.65,142.55,0.28432314]
[1742997142794,221.9757,142.7,142.58,19.07613357]
[1742997142961,79.4766,142.7,142.6,19.07613357]
[1742997143289,99.4766,142.7,142.59,8.26]
[1742997143462,79.4766,142.7,142.59,8.26]
[1742997143954,79.4766,142.7,142.55,0.42648471]
[1742997143955,99.4766,142.7,142.55,0.28432314]
[1742997144156,214.9766,142.69,142.56,8.24]
[1742997144352,214.9766,142.69,142.57,0.42648471]
[1742997144553,214.9766,142.68,142.55,0.28432314]
[1742997144785,214.9766,142.68,142.56,18.64964886]
[1742997144989,20.0,142.66,142.52,18.64964886]
[1742997145288,20.0,142.61,142.5,202.06]
[1742997145463,20.0,142.61,142.49,1.0]
[1742997145464,87.6966,142.6,142.49,1.0]
[1742997145658,214.9766,142.59,142.49,1.0]
[1742997145980,214.9766,142.58,142.49,1.0]
[1742997146389,20.0,142.56,142.49,1.0]
[1742997146682,214.9766,142.55,142.49,1.0]
[1742997146987,223.1766,142.54,142.49,1.0]
[1742997147374,20.0,142.51,142.49,1.0]
[1742997147573,214.9766,142.5,142.49,1.0]
[1742997147959,79.4766,142.5,142.49,1.0]
[1742997149294,8.3,142.5,142.31,4.40545433]
[1742997149487,20.0,142.47,142.26,0.5]
[1742997149790,20.0,142.45,142.26,0.5]
[1742997149972,20.0,142.45,142.29,8.36]
[1742997150291,74.9862,142.46,142.32,8.36]
[1742997150495,155.5,142.48,142.32,8.36]
[1742997150496,135.5,142.48,142.32,8.36]
[1742997150669,74.9862,142.52,142.35,20.0]
[1742997150873,74.9862,142.52,142.36,4.0567]
[1742997151082,74.9862,142.52,142.39,20.0]
[1742997151285,74.9862,142.52,142.36,5.3586325]
[1742997151286,74.9862,142.52,142.38,202.28]
[1742997151460,4.0227,142.61,142.38,202.28]
[1742997151461,28.38,142.59,142.41,20.0]
[1742997151784,74.9862,142.58,142.45,20.0]
[1742997152085,74.9862,142.57,142.42,210.66]
[1742997152894,20.0,142.55,142.42,202.28]
[1742997153489,210.4862,142.56,142.42,202.28]
[1742997153794,74.9862,142.56,142.42,202.28]
[1742997154178,74.9862,142.56,142.45,20.0]
[1742997154383,74.9862,142.56,142.46,8.38]
[1742997155485,74.9862,142.6,142.46,8.38]
[1742997155691,74.9862,142.59,142.49,20.0]
[1742997155884,74.9862,142.66,142.49,102.0]
[1742997156084,74.9862,142.66,142.52,20.0]
[1742997156292,74.9862,142.66,142.53,210.7]
[1742997156606,74.9862,142.66,142.53,202.34]
[1742997156896,210.4862,142.65,142.53,210.7]
[1742997157276,218.8462,142.65,142.53,202.34]
[1742997157472,210.4862,142.64,142.53,202.34]
[1742997157972,74.9862,142.64,142.53,202.34]
[1742997159394,74.9862,142.64,142.54,19.07613357]
[1742997160099,74.9862,142.64,142.52,0.14216157]
[1742997160283,74.9862,142.64,142.55,27.37613357]
[1742997160482,74.9862,142.64,142.57,0.42648471]
[1742997160672,74.9862,142.64,142.57,18.64964886]
[1742997161187,74.9862,142.64,142.56,8.3]
[1742997161481,74.9862,142.64,142.57,19.07613357]
[1742997161802,210.4862,142.68,142.57,19.07613357]
[1742997162001,74.9862,142.68,142.57,19.07613357]
[1742997163503,74.9862,142.68,142.5,3.46684889]
[1742997163504,0.14216157,142.43,142.34,42.69755902]
[1742997163708,0.14216157,142.43,142.2,35.49604972]
[1742997163709,20.0,142.34,142.2,35.49604972]
[1742997163946,9.14,142.34,142.15,5.7253897]
[1742997164205,74.9862,142.36,142.19,9.14]
[1742997164501,20.0,142.33,142.19,9.14]
[1742997164690,94.9862,142.32,142.16,43.35239136]
[1742997164892,74.9862,142.32,142.2,9.14]
[1742997165199,40.0,142.35,142.16,43.35239136]
[1742997165900,20.0,142.32,142.16,43.35239136]
[1742997166093,135.5,142.36,142.18,18.64964886]
[1742997166273,135.5,142.36,142.21,18.79181043]
[1742997166701,7.2253,142.38,142.25,18.79181043]
[1742997166883,7.2253,142.38,142.26,0.28432314]
[1742997167910,135.5,142.39,142.26,0.28432314]
[1742997168112,135.5,142.39,142.27,0.14216157]
[1742997168897,135.5,142.39,142.28,0.28432314]
[1742997169114,2.113,142.41,142.3,0.42648471]
[1742997169304,135.5,142.4,142.29,9.12]
[1742997169691,217.2,142.4,142.29,9.12]
[1742997170011,217.2,142.4,142.29,27.76964886]
[1742997170913,217.2,142.4,142.32,5.10451864]
[1742997171459,217.2,142.39,142.32,5.10451864]
[1742997171728,81.7,142.39,142.32,5.10451864]
[1742997172223,81.7,142.39,142.28,211.46]
[1742997172224,81.7,142.39,142.33,5.10451864]
[1742997172407,81.763,142.39,142.33,5.10451864]
[1742997174123,81.763,142.39,142.29,32.7741675]
[1742997174302,0.063,142.39,142.3,19.07613357]
[1742997174497,0.063,142.39,142.29,32.7741675]
[1742997174697,0.063,142.39,142.31,9.05]
[1742997175116,0.063,142.39,142.31,0.03]
[1742997177529,0.063,142.39,142.31,5.13049461]
[1742997179315,0.063,142.39,142.31,0.03]
[1742997179710,135.5,142.38,142.31,0.03]
[1742997179909,237.2,142.37,142.31,0.03]
[1742997180106,217.2,142.37,142.31,0.03]
[1742997180330,0.063,142.39,142.31,0.03]
[1742997181228,237.2,142.38,142.31,0.03]
[1742997181601,20.0,142.35,142.31,0.03]
[1742997181808,217.263,142.39,142.31,0.03]
[1742997182117,20.0,142.36,142.31,0.03]
[1742997182436,217.2,142.35,142.31,0.03]
[1742997184032,20.0,142.32,142.31,0.03]
[1742997184233,135.5,142.36,142.31,0.03]
[1742997184455,135.5,142.35,142.31,0.03]
[1742997184928,81.7,142.34,142.31,0.03]
[1742997185643,0.063,142.37,142.31,0.03]
[1742997186736,0.063,142.37,142.32,5.10049461]
[1742997186921,81.7,142.36,142.32,5.10049461]
[1742997188046,81.7,142.36,142.31,0.03]
[1742997188400,81.7,142.35,142.31,0.03]
[1742997188822,81.7,142.34,142.31,0.03]
[1742997189035,0.063,142.37,142.31,0.03]
[1742997189739,20.0,142.32,142.31,0.03]
[1742997189905,20.14216157,142.32,142.31,0.03]
[1742997190105,20.0,142.32,142.31,0.03]
[1742997190861,29.04,142.33,142.31,0.03]
[1742997191150,0.063,142.37,142.31,0.03]
[1742997191320,20.063,142.37,142.31,0.03]
[1742997191751,20.0,142.35,142.31,0.03]
[1742997192861,40.063,142.37,142.31,0.03]
[1742997193156,0.063,142.37,142.31,0.03]
[1742997194148,81.7,142.34,142.31,0.03]
[1742997194651,0.063,142.37,142.31,0.03]
[1742997194827,0.063,142.37,142.31,9.03]
[1742997197835,0.063,142.37,142.31,0.03]
[1742997198028,81.7,142.36,142.31,0.03]
[1742997200633,81.7,142.35,142.31,0.03]
[1742997203650,81.7,142.34,142.31,0.03]
[1742997203967,81.7,142.33,142.31,0.03]
[1742997212065,81.7,142.32,142.31,0.03]
[1742997212238,135.5,142.36,142.31,0.03]
[1742997212239,20.0,142.35,142.31,0.03]
[1742997212439,20.0,142.33,142.31,0.03]
[1742997212763,20.0,142.3,142.16,3.5167]
[1742997212939,135.5,142.29,142.12,202.68]
[1742997213139,155.5,142.28,142.12,211.32]
[1742997213348,155.5,142.28,142.12,202.68]
[1742997213349,20.0,142.26,142.12,202.68]
[1742997213550,20.0,142.24,142.12,202.68]
[1742997213770,135.5,142.23,142.12,202.68]
[1742997214059,155.5,142.22,142.09,3.5167]
[1742997214252,135.5,142.21,142.09,3.5167]
[1742997214577,7.3945,142.23,142.09,3.5167]
[1742997214578,155.5,142.2,142.09,3.5167]
[1742997214735,144.12,142.19,142.04,206.3973]
[1742997215071,20.0,142.17,142.04,206.3973]
[1742997215262,135.5,142.16,142.04,206.3973]
[1742997215455,20.0,142.17,141.97,3.5862]
[1742997215662,20.0,142.15,141.97,4.0862]
[1742997216064,135.5,142.14,142.01,0.5]
[1742997216277,135.5,142.18,142.06,38.64964886]
[1742997216570,217.2,142.18,142.07,0.28432314]
[1742997216758,81.7,142.18,142.07,0.42648471]
[1742997217159,81.7,142.18,142.08,7.0382]
[1742997218167,81.7,142.18,142.09,18.64964886]
[1742997218369,135.5,142.22,142.1,0.42648471]
[1742997219668,155.5,142.22,142.09,29.54964886]
[1742997220174,217.2,142.21,142.09,29.54964886]
[1742997220348,217.2,142.21,142.1,0.28432314]
[1742997220538,217.2,142.21,142.12,20.0]
[1742997220743,217.2,142.21,142.13,18.933972]
[1742997221070,135.5,142.26,142.14,18.64964886]
[1742997222049,135.5,142.26,142.15,0.42648471]
[1742997222353,135.5,142.26,142.17,18.64964886]
[1742997222558,89.2494,142.27,142.17,18.64964886]
[1742997223166,81.7,142.27,142.17,18.64964886]
[1742997223547,81.7,142.27,142.18,0.28432314]
[1742997224078,135.5,142.31,142.21,18.64964886]
[1742997224254,135.5,142.32,142.21,18.64964886]
[1742997224876,135.5,142.32,142.18,0.42648471]
[1742997225046,155.5,142.31,142.18,0.28432314]
[1742997225246,135.5,142.3,142.18,0.42648471]
[1742997225646,81.7,142.29,142.18,0.42648471]
[1742997225843,135.5,142.3,142.18,0.42648471]
[1742997227761,135.5,142.3,142.2,0.42648471]
[1742997228086,135.5,142.3,142.2,19.07613357]
[1742997228259,27.4811,142.33,142.2,18.79181043]
[1742997228260,135.5,142.32,142.2,18.79181043]
[1742997229779,135.5,142.32,142.2,18.64964886]
[1742997231489,135.5,142.31,142.2,18.64964886]
[1742997231656,81.7,142.3,142.2,18.64964886]
[1742997233189,217.2,142.36,142.21,19.07613357]
[1742997233393,81.7,142.36,142.25,18.64964886]
[1742997233591,81.7,142.36,142.26,10.84]
[1742997234273,135.563,142.37,142.27,10.84]
[1742997236872,0.063,142.37,142.27,10.84]
[1742997237079,81.7,142.36,142.27,10.84]
[1742997238795,81.7,142.35,142.26,29.36964886]
[1742997239778,237.2,142.34,142.19,3.6027]
[1742997239970,237.2,142.34,142.21,20.0]
[1742997240166,217.2,142.33,142.21,30.68]
[1742997240370,217.2,142.33,142.21,10.66]
[1742997241264,217.2,142.33,142.22,18.64964886]
[1742997242180,217.2,142.33,142.21,10.66]
[1742997242385,217.2,142.33,142.22,18.64964886]
[1742997242886,81.7,142.33,142.22,18.64964886]
[1742997243591,81.7,142.33,142.21,10.66]
[1742997243592,81.7,142.33,142.26,18.64964886]
[1742997244292,135.5,142.36,142.26,18.64964886]
[1742997244473,0.063,142.37,142.28,18.64964886]
[1742997245165,0.063,142.37,142.27,10.64]
[1742997246364,0.063,142.37,142.28,18.64964886]
[1742997247495,0.063,142.37,142.31,20.0]
[1742997247999,0.063,142.37,142.28,18.64964886]
[1742997248388,0.063,142.37,142.29,10.52]
[1742997248987,81.7,142.36,142.29,10.52]
[1742997249490,7.5085,142.33,142.18,18.2422]
[1742997249690,81.7,142.32,142.18,18.2422]
[1742997249882,81.7,142.31,142.21,20.0]
[1742997250775,81.7,142.31,142.2,29.12964886]
[1742997250986,81.7,142.3,142.17,202.68]
[1742997251292,81.7,142.29,142.17,213.16]
[1742997251477,81.7,142.28,142.17,213.16]
[1742997251683,81.7,142.28,142.18,18.64964886]
[1742997252384,81.7,142.27,142.17,202.68]
[1742997252686,81.7,142.26,142.17,202.68]
[1742997252992,81.7,142.25,142.17,202.68]
[1742997253376,81.7,142.24,142.17,202.68]
[1742997253570,81.7,142.24,142.15,0.03]
[1742997254972,217.2,142.28,142.16,0.14216157]
[1742997255174,217.2,142.28,142.16,18.79181043]
[1742997255400,217.2,142.28,142.16,0.14216157]
[1742997255586,217.2,142.28,142.17,38.64964886]
[1742997256394,217.2,142.28,142.16,10.34]
[1742997258405,237.2,142.27,142.16,10.34]
[1742997259285,217.2,142.27,142.16,10.34]
[1742997259886,237.2,142.27,142.16,10.34]
[1742997260404,217.2,142.27,142.16,10.34]
[1742997262405,217.2,142.27,142.15,18.67964886]
[1742997262900,237.2,142.27,142.15,0.03]
[1742997263889,217.2,142.26,142.15,0.03]
[1742997266906,81.7,142.25,142.15,0.03]
[1742997270323,81.7,142.25,142.16,18.64964886]
[1742997270622,0.063,142.28,142.17,0.42648471]
[1742997271089,0.063,142.28,142.16,38.64964886]
[1742997272425,20.063,142.28,142.16,18.64964886]
[1742997272597,217.2,142.27,142.15,202.87]
[1742997272790,237.2,142.27,142.15,202.87]
[1742997273504,217.62648471,142.26,142.15,202.87]
[1742997274330,7.5518,142.25,142.15,202.87]
[1742997274893,81.7,142.24,142.15,202.87]
[1742997275202,143.0518,142.25,142.15,0.03]
[1742997275203,81.7,142.23,142.15,0.03]
[1742997275400,81.7,142.22,142.15,0.03]
[1742997276022,81.7,142.21,142.15,0.03]
[1742997276212,81.7,142.2,142.15,0.03]
[1742997276415,81.7,142.19,142.15,0.03]
[1742997279317,81.7,142.18,142.15,0.03]
[1742997279692,145.52,142.22,142.15,0.03]
[1742997279693,217.2,142.17,142.15,0.03]
[1742997279931,81.7,142.16,142.15,0.03]
[1742997280415,7.1122,142.15,142.05,202.84]
[1742997280592,81.7,142.14,142.03,3.8118]
[1742997281323,81.7,142.13,142.04,7.0402]
[1742997282723,217.2,142.12,142.04,7.0402]
[1742997282928,81.7,142.11,142.04,7.0402]
[1742997283095,81.7,142.14,142.04,7.0402]
[1742997283296,81.7,142.14,142.05,18.64964886]
[1742997283700,81.7,142.17,142.07,18.64964886]
[1742997284613,81.7,142.16,142.06,7.0392]
[1742997284811,81.7,142.16,142.07,18.64964886]
[1742997285024,81.7,142.15,142.06,7.0392]
[1742997285230,81.7,142.14,142.06,7.0392]
[1742997285527,155.5,142.15,142.06,7.0392]
[1742997285528,81.7,142.13,142.06,7.0392]
[1742997285716,81.7,142.13,142.02,25.69084886]
[1742997286731,81.7,142.13,142.04,18.64964886]
[1742997287301,81.7,142.18,142.08,18.64964886]
[1742997287712,7.401,142.2,142.09,7.0377]
[1742997287926,7.401,142.2,142.11,18.64964886]
[1742997289815,81.7,142.26,142.13,18.64964886]
[1742997290015,143.0493,142.27,142.13,18.64964886]
[1742997290016,81.7,142.25,142.13,18.64964886]
[1742997290730,81.7,142.25,142.12,3.6749]
[1742997290731,217.2,142.24,142.12,3.6749]
[1742997290912,217.2,142.24,142.13,18.64964886]
[1742997291315,81.7,142.24,142.13,18.64964886]
[1742997291638,81.7,142.24,142.16,20.0]
[1742997291825,81.7,142.24,142.17,18.64964886]
[1742997292029,7.5493,142.27,142.17,18.64964886]
[1742997293328,81.763,142.28,142.17,18.64964886]
[1742997293810,0.0001,142.28,142.22,0.28432314]
[1742997294012,0.063,142.37,142.24,18.64964886]
[1742997294309,0.063,142.37,142.26,53.77828342]
[1742997294515,0.063,142.37,142.26,18.64964886]
[1742997295117,93.14006907,142.43,142.26,18.64964886]
[1742997295419,20.0,142.39,142.26,18.64964886]
[1742997296036,9.62,142.39,142.27,14.45975517]
[1742997296738,9.62,142.39,142.36,10.92564669]
[1742997296939,0.14216157,142.41,142.36,10.92564669]
[1742997297237,99.93831272,142.42,142.33,10.92564669]
[1742997298031,0.28432314,142.41,142.33,10.92564669]
[1742997298213,7.86602314,142.41,142.32,10.92564669]
[1742997299436,7.86602314,142.41,142.33,10.92564669]
[1742997300612,7.86602314,142.41,142.32,10.92564669]
[1742997300811,38.64964886,142.4,142.32,10.92564669]
[1742997301125,20.0,142.36,142.32,10.92564669]
[1742997301326,20.0,142.35,142.32,10.92564669]
[1742997301724,70.33831272,142.34,142.3,10.92564669]
[1742997302227,20.0,142.31,142.3,10.92564669]
[1742997302543,27.95212314,142.31,142.3,7.03694669]
[1742997302710,18.933972,142.3,142.28,21.85129339]
[1742997302929,9.48,142.29,142.27,43.71430282]
[1742997303152,144.98,142.29,142.27,43.71430282]
[1742997304074,0.28432314,142.28,142.27,43.71430282]
[1742997304271,20.0,142.26,142.13,33.21592412]
[1742997305133,0.28432314,142.25,142.13,25.69112412]
[1742997305538,154.433972,142.25,142.13,25.69112412]